bitfinex/quotes_BTCUSD_20241111
["timestamp","ask_amount","ask_price","bid_price","bid_amount"]
[1731309472633,0.18536941,80925.0,80908.0,0.49607272]
[1731309472857,0.18536941,80925.0,80908.0,0.50073059]
[1731309473082,0.18536941,80925.0,80908.0,0.61185059]
[1731309473349,0.18536941,80925.0,80908.0,0.60985059]
[1731309475396,0.03840153,80925.0,80924.0,0.13040551]
[1731309475596,0.18536941,80937.0,80935.0,0.123555]
[1731309475809,0.18536941,80937.0,80936.0,0.123554]
[1731309476070,0.18536941,80937.0,80933.0,0.247117]
[1731309476071,0.0010496,80936.0,80934.0,0.247114]
[1731309476275,0.0010496,80936.0,80935.0,0.123555]
[1731309476654,0.0010496,80936.0,80935.0,0.12538851]
[1731309477081,0.0010496,80936.0,80932.0,0.005]
[1731309477296,0.0010496,80936.0,80927.0,0.18536941]
[1731309477495,0.0010496,80936.0,80930.0,0.005]
[1731309477900,0.123558,80934.0,80930.0,0.005]
[1731309478426,0.0010496,80936.0,80930.0,0.00683351]
[1731309478638,0.0010496,80936.0,80928.0,0.18536941]
[1731309478639,0.0010496,80936.0,80935.0,0.123555]
[1731309479698,0.0010496,80936.0,80935.0,0.12907025]
[1731309481825,0.0027336,80936.0,80935.0,0.12907025]
[1731309482168,0.001684,80936.0,80935.0,0.12907025]
[1731309483452,0.001684,80936.0,80935.0,0.005]
[1731309483668,0.001684,80936.0,80935.0,0.00683351]
[1731309484109,0.001684,80936.0,80935.0,0.005]
[1731309484445,0.125238,80936.0,80935.0,0.005]
[1731309484652,0.125238,80936.0,80924.0,0.005]
[1731309484653,0.0461,80935.0,80924.0,0.005]
[1731309484862,0.247114,80934.0,80927.0,0.18536941]
[1731309485242,0.123561,80932.0,80927.0,0.18536941]
[1731309485588,0.123563,80930.0,80927.0,0.18536941]
[1731309485789,0.123563,80930.0,80926.0,0.005]
[1731309486226,0.247117,80933.0,80926.0,0.005]
[1731309486715,0.247117,80933.0,80906.0,0.33116941]
[1731309486716,0.12594221,80932.0,80919.0,0.005]
[1731309486933,0.123572,80924.0,80919.0,0.005]
[1731309487621,0.247139,80926.0,80919.0,0.005]
[1731309487832,0.123578,80920.0,80919.0,0.005]
[1731309488251,0.123575,80923.0,80919.0,0.005]
[1731309489121,0.247143,80925.0,80919.0,0.005]
[1731309489332,0.123574,80923.0,80919.0,0.005]
[1731309489544,0.247143,80925.0,80919.0,0.005]
[1731309489749,0.123575,80922.0,80919.0,0.005]
[1731309490565,0.247153,80922.0,80919.0,0.005]
[1731309490764,0.0766,80921.0,80919.0,0.005]
[1731309491603,0.200177,80921.0,80919.0,0.005]
[1731309492224,0.123578,80920.0,80919.0,0.005]
[1731309492843,0.0766,80921.0,80919.0,0.005]
[1731309493271,0.123578,80920.0,80919.0,0.005]
[1731309493549,0.123578,80920.0,80919.0,0.005841]
[1731309493731,0.0766,80921.0,80919.0,0.005841]
[1731309493890,0.0766,80921.0,80920.0,0.005]
[1731309494091,0.200177,80921.0,80920.0,0.005]
[1731309495398,0.0766,80921.0,80920.0,0.005]
[1731309497304,0.0805,80928.0,80920.0,0.005]
[1731309497501,0.6823,80929.0,80919.0,0.00267451]
[1731309497502,0.6823,80929.0,80928.0,0.123566]
[1731309498412,0.6823,80929.0,80927.0,0.123568]
[1731309498617,0.6823,80929.0,80926.0,0.005]
[1731309498618,0.6823,80929.0,80928.0,0.123566]
[1731309499439,0.6823,80929.0,80926.0,0.005]
[1731309499846,0.6823,80929.0,80926.0,0.128569]
[1731309500080,0.6823,80929.0,80927.0,0.123567]
[1731309500761,0.6823,80929.0,80926.0,0.005]
[1731309501862,0.123568,80927.0,80926.0,0.005]
[1731309502051,0.6823,80929.0,80926.0,0.005]
[1731309502255,0.123577,80921.0,80920.0,0.005]
[1731309502649,1.5,80923.0,80920.0,0.128578]
[1731309503078,1.5,80923.0,80920.0,0.005]
[1731309503290,0.24715,80923.0,80920.0,0.005]
[1731309503492,0.123577,80921.0,80920.0,0.005]
[1731309504273,0.24715,80923.0,80919.0,0.000841]
[1731309504500,0.200778,80920.0,80919.0,0.000841]
[1731309504714,0.57094494,80920.0,80919.0,0.000841]
[1731309504988,2.07094494,80920.0,80919.0,0.000841]
[1731309505188,1.8979867,80920.0,80919.0,0.000841]
[1731309505378,1.9344731,80920.0,80919.0,0.000841]
[1731309505571,2.06241531,80920.0,80919.0,0.000841]
[1731309505797,2.06041531,80920.0,80919.0,0.000841]
[1731309506329,2.71122891,80920.0,80919.0,0.000841]
[1731309506560,2.86044976,80920.0,80919.0,0.000841]
[1731309506763,2.71422891,80920.0,80919.0,0.000841]
[1731309506983,2.76899498,80920.0,80919.0,0.000841]
[1731309507187,2.71222891,80920.0,80919.0,0.000841]
[1731309507699,0.00316649,80910.0,80907.0,0.18536941]
[1731309507842,0.123597,80908.0,80907.0,0.18536941]
[1731309508049,0.24953921,80908.0,80907.0,0.18536941]
[1731309508263,0.123606,80902.0,80901.0,0.005]
[1731309508481,0.3267,80906.0,80897.0,0.005]
[1731309508683,0.3267,80906.0,80894.0,0.18536941]
[1731309508684,0.247206,80904.0,80895.0,0.005]
[1731309508887,0.123617,80895.0,80894.0,0.18536941]
[1731309509085,0.123617,80895.0,80894.0,0.19036941]
[1731309509345,0.247224,80899.0,80889.0,0.005]
[1731309509553,0.123627,80888.0,80887.0,0.005]
[1731309509774,0.123627,80888.0,80877.0,0.000842]
[1731309509775,0.12363,80886.0,80883.0,0.18536941]
[1731309509907,0.247254,80889.0,80883.0,0.18536941]
[1731309510109,0.123633,80884.0,80883.0,0.18536941]
[1731309510372,0.123631,80886.0,80881.0,0.005]
[1731309510607,0.123631,80886.0,80879.0,0.12547351]
[1731309510608,0.247254,80889.0,80886.0,0.005]
[1731309510755,0.123627,80888.0,80881.0,0.005]
[1731309510954,0.123629,80887.0,80886.0,0.005]
[1731309511178,0.123626,80889.0,80886.0,0.005]
[1731309511759,0.6823,80893.0,80886.0,0.005]
[1731309511963,0.6823,80893.0,80888.0,0.00183351]
[1731309512194,0.6823,80893.0,80892.0,0.123621]
[1731309513208,0.6823,80893.0,80890.0,0.123623]
[1731309513409,0.6823,80893.0,80891.0,0.123623]
[1731309513588,0.6823,80893.0,80889.0,0.00683351]
[1731309513770,0.6823,80893.0,80889.0,0.005]
[1731309513771,0.74437485,80893.0,80889.0,0.005]
[1731309513981,0.6823,80893.0,80889.0,0.005]
[1731309514422,0.6823,80893.0,80889.0,0.128626]
[1731309514624,0.123618,80894.0,80889.0,0.128626]
[1731309515029,0.6823,80898.0,80892.0,0.18536941]
[1731309515227,0.6823,80898.0,80890.0,0.00683351]
[1731309515471,0.6823,80898.0,80896.0,0.123615]
[1731309515716,0.6823,80898.0,80892.0,0.247243]
[1731309515834,0.6823,80898.0,80894.0,0.123618]
[1731309516046,0.6823,80898.0,80892.0,0.12362]
[1731309516260,0.6823,80898.0,80897.0,0.123613]
[1731309516658,0.6823,80898.0,80895.0,0.123616]
[1731309516899,0.6823,80898.0,80894.0,0.005]
[1731309517217,0.123614,80897.0,80894.0,0.005]
[1731309517449,0.123615,80896.0,80894.0,0.005]
[1731309517642,0.6823,80898.0,80894.0,0.005]
[1731309518046,0.6843,80898.0,80894.0,0.005]
[1731309518255,0.123616,80896.0,80894.0,0.005]
[1731309518963,0.17095824,80895.0,80894.0,0.005]
[1731309519173,0.29690045,80895.0,80886.0,0.000841]
[1731309519347,0.29458724,80887.0,80886.0,0.000841]
[1731309520286,0.247254,80889.0,80886.0,0.000841]
[1731309520727,0.123629,80887.0,80886.0,0.000841]
[1731309524161,0.123621,80892.0,80886.0,0.12447]
[1731309524335,0.12594221,80892.0,80886.0,0.12447]
[1731309524544,0.68708429,80893.0,80886.0,0.000841]
[1731309524718,0.68708429,80893.0,80888.0,0.123626]
[1731309524924,0.81070429,80893.0,80888.0,0.123626]
[1731309525353,0.123621,80892.0,80886.0,0.124471]
[1731309525588,0.123621,80892.0,80887.0,0.123628]
[1731309526115,0.68708429,80893.0,80886.0,0.000841]
[1731309526116,0.6823,80893.0,80886.0,0.000841]
[1731309526336,0.80592,80893.0,80888.0,0.123627]
[1731309526522,0.6823,80899.0,80891.0,0.123622]
[1731309526778,0.6823,80899.0,80896.0,0.123614]
[1731309526947,0.6823,80899.0,80898.0,0.123612]
[1731309527369,0.6823,80899.0,80898.0,0.13044551]
[1731309528414,0.93295824,80915.0,80904.0,0.005]
[1731309528614,0.123589,80913.0,80905.0,0.247203]
[1731309528909,0.12594221,80914.0,80907.0,0.247197]
[1731309529137,0.123589,80913.0,80907.0,0.123598]
[1731309529316,0.123591,80912.0,80906.0,0.123599]
[1731309530151,0.37311821,80914.0,80906.0,0.123599]
[1731309530392,0.123591,80912.0,80906.0,0.123599]
[1731309531367,1.623591,80912.0,80906.0,0.123599]
[1731309531530,0.123592,80911.0,80906.0,0.123599]
[1731309532331,1.5,80912.0,80906.0,0.123599]
[1731309532529,1.5,80912.0,80907.0,0.123597]
[1731309532755,1.623591,80912.0,80907.0,0.123597]
[1731309533675,1.623591,80912.0,80904.0,0.19036941]
[1731309533676,1.5,80912.0,80904.0,0.19036941]
[1731309533890,1.5,80912.0,80911.0,0.123592]
[1731309534456,0.6823,80923.0,80918.0,0.123581]
[1731309534651,0.123583,80918.0,80911.0,0.00183351]
[1731309534821,1.5,80918.0,80913.0,0.123588]
[1731309535025,1.5,80918.0,80911.0,0.00183351]
[1731309535228,1.5,80918.0,80915.0,0.123585]
[1731309535437,0.001682,80919.0,80913.0,0.247179]
[1731309535648,0.001682,80919.0,80915.0,0.123585]
[1731309536381,0.001682,80919.0,80914.0,0.123587]
[1731309536587,0.001682,80919.0,80916.0,0.123584]
[1731309536908,0.001682,80919.0,80914.0,0.18536941]
[1731309537119,0.001682,80919.0,80915.0,0.247172]
[1731309537316,0.001682,80919.0,80912.0,0.247182]
[1731309537746,0.001682,80919.0,80916.0,0.123584]
[1731309538786,0.001682,80919.0,80914.0,0.247176]
[1731309539016,0.001682,80919.0,80915.0,0.123585]
[1731309539317,0.001682,80919.0,80916.0,0.123584]
[1731309540055,0.001682,80919.0,80911.0,0.00183351]
[1731309540466,0.001682,80919.0,80916.0,0.123584]
[1731309540928,0.25180081,80924.0,80916.0,0.123584]
[1731309540929,0.123577,80922.0,80916.0,0.123584]
[1731309541159,0.25180081,80924.0,80916.0,0.123584]
[1731309541316,0.6823,80925.0,80920.0,0.005]
[1731309541560,0.076,80933.0,80931.0,0.123561]
[1731309541753,0.076,80933.0,80923.0,0.00183351]
[1731309541978,1.5,80932.0,80929.0,0.123564]
[1731309542154,1.5,80932.0,80931.0,0.123562]
[1731309542468,0.076,80933.0,80932.0,0.12356]
[1731309542746,0.076,80933.0,80930.0,0.123562]
[1731309543189,0.076,80933.0,80926.0,0.252139]
[1731309543190,0.076,80933.0,80929.0,0.123564]
[1731309543399,0.076,80933.0,80927.0,0.247136]
[1731309543400,0.001684,80936.0,80931.0,0.18536941]
[1731309543606,0.001684,80936.0,80935.0,0.13038851]
[1731309549588,0.001684,80936.0,80935.0,0.35880175]
[1731309549832,0.001684,80936.0,80935.0,0.48533072]
[1731309550039,0.001684,80936.0,80935.0,0.49533072]
[1731309551069,0.001684,80936.0,80935.0,0.48833072]
[1731309551277,0.001684,80936.0,80935.0,0.35633072]
[1731309551507,0.001684,80936.0,80935.0,0.13038851]
[1731309551996,0.001684,80936.0,80935.0,0.00683351]
[1731309552208,0.001684,80936.0,80935.0,0.13038851]
[1731309554292,0.001684,80936.0,80932.0,0.24712]
[1731309554293,0.001684,80936.0,80934.0,0.005]
[1731309554497,0.001684,80936.0,80932.0,0.00183351]
[1731309554498,0.001684,80936.0,80935.0,0.005]
[1731309555140,0.001684,80936.0,80935.0,0.128555]
[1731309555346,0.001684,80936.0,80935.0,0.005]
[1731309555524,0.125238,80936.0,80935.0,0.005]
[1731309555709,0.001684,80936.0,80935.0,0.005]
[1731309556687,0.125238,80936.0,80935.0,0.005]
[1731309556904,0.001684,80936.0,80935.0,0.005]
[1731309557526,0.001684,80936.0,80935.0,0.31575792]
[1731309557779,0.001684,80936.0,80935.0,0.54670013]
[1731309557967,0.001684,80936.0,80935.0,0.36133072]
[1731309558156,0.001684,80936.0,80935.0,0.36633072]
[1731309559437,0.001684,80936.0,80935.0,0.37097327]
[1731309561236,0.042936,80962.0,80958.0,0.12852]
[1731309562240,0.042936,80962.0,80958.0,0.005]
[1731309562393,0.042936,80962.0,80948.0,0.005]
[1731309562394,0.05156649,80960.0,80948.0,0.005]
[1731309562603,0.17095824,80948.0,80946.0,0.19036941]
[1731309562980,0.17095824,80948.0,80947.0,0.005]
[1731309563421,0.247054,80954.0,80947.0,0.005]
[1731309563422,1.62594221,80959.0,80947.0,0.005]
[1731309563588,1.62594221,80959.0,80954.0,0.005]
[1731309563589,1.5,80959.0,80954.0,0.005]
[1731309563793,1.623519,80959.0,80954.0,0.128526]
[1731309564072,0.17095824,80958.0,80954.0,0.005]
[1731309565171,0.12594221,80957.0,80949.0,0.005]
[1731309565365,0.12594221,80957.0,80952.0,0.005]
[1731309565579,0.123528,80953.0,80952.0,0.005]
[1731309567465,0.123533,80950.0,80949.0,0.005]
[1731309567671,0.123539,80946.0,80945.0,0.005]
[1731309568026,0.123539,80946.0,80937.0,0.18536941]
[1731309568027,0.123549,80939.0,80938.0,0.005]
[1731309568446,0.0492,80944.0,80941.0,0.005]
[1731309568605,0.0492,80944.0,80943.0,0.005]
[1731309569249,0.0757,80946.0,80943.0,0.005]
[1731309569492,0.0757,80952.0,80946.0,0.247076]
[1731309570087,0.0757,80952.0,80948.0,0.123535]
[1731309570301,0.0757,80952.0,80948.0,0.123536]
[1731309570505,0.0757,80952.0,80948.0,0.247072]
[1731309570717,0.0757,80952.0,80947.0,0.123536]
[1731309570923,0.0757,80952.0,80945.0,0.005]
[1731309571138,0.123539,80946.0,80945.0,0.005]
[1731309571588,0.123537,80947.0,80945.0,0.005]
[1731309571862,0.00543957,80946.0,80945.0,0.13037351]
[1731309572931,0.6823,80953.0,80951.0,0.123531]
[1731309573145,0.6823,80953.0,80950.0,0.252064]
[1731309573358,0.00543971,80952.0,80951.0,0.123531]
[1731309573991,0.00543971,80952.0,80950.0,0.005]
[1731309574203,0.00458058,80954.0,80951.0,0.123531]
[1731309574626,0.123518,80960.0,80950.0,0.005]
[1731309574831,0.123518,80960.0,80943.0,0.18536941]
[1731309574832,0.0829,80961.0,80953.0,0.005]
[1731309575036,0.0007,80963.0,80962.0,0.123514]
[1731309575724,0.0007,80963.0,80956.0,0.005]
[1731309575927,0.0007,80963.0,80944.0,0.1]
[1731309575928,0.0007,80963.0,80959.0,0.005]
[1731309576344,0.12351,80965.0,80960.0,0.123517]
[1731309576514,0.123515,80962.0,80959.0,0.005]
[1731309577088,0.123517,80960.0,80959.0,0.005]
[1731309577966,0.001682,80963.0,80959.0,0.005]
[1731309578120,0.12762421,80963.0,80959.0,0.005]
[1731309578484,0.123516,80961.0,80959.0,0.005]
[1731309578767,0.12762421,80963.0,80959.0,0.005]
[1731309578998,0.001682,80963.0,80959.0,0.005]
[1731309579193,0.125195,80963.0,80959.0,0.005]
[1731309579404,0.001682,80963.0,80959.0,0.005]
[1731309579628,0.001682,80963.0,80959.0,0.128517]
[1731309580416,0.001682,80963.0,80959.0,0.005]
[1731309580617,0.001682,80963.0,80960.0,0.123517]
[1731309581282,0.001682,80963.0,80960.0,0.247034]
[1731309581490,0.001682,80963.0,80959.0,0.005]
[1731309581686,0.002682,80963.0,80959.0,0.005]
[1731309582428,0.001682,80963.0,80959.0,0.005]
[1731309582644,0.001682,80963.0,80959.0,0.128518]
[1731309583110,0.001682,80963.0,80959.0,0.005]
[1731309583615,0.001682,80963.0,80959.0,0.128517]
[1731309584670,0.001682,80963.0,80962.0,0.00183351]
[1731309584912,0.001682,80963.0,80962.0,0.12534751]
[1731309585842,0.006682,80963.0,80962.0,0.13034751]
[1731309586584,0.004682,80963.0,80962.0,0.13034751]
[1731309587083,0.001682,80963.0,80962.0,0.1328175]
[1731309587503,0.001682,80963.0,80962.0,0.13034751]
[1731309587976,0.001682,80963.0,80962.0,0.13281745]
[1731309588188,0.00092952,80980.0,80977.0,0.123491]
[1731309588397,0.00548602,80979.0,80975.0,0.246989]
[1731309588603,0.00548602,80979.0,80973.0,0.00683351]
[1731309588749,0.001682,80981.0,80973.0,0.00683351]
[1731309588750,0.001682,80981.0,80978.0,0.123489]
[1731309589162,0.001682,80981.0,80980.0,0.123487]
[1731309589746,0.001682,80981.0,80980.0,0.12532051]
[1731309590544,0.001682,80981.0,80980.0,0.13032051]
[1731309593567,0.001682,80981.0,80980.0,0.005]
[1731309593990,0.001682,80981.0,80980.0,0.128487]
[1731309594597,0.001682,80981.0,80980.0,0.13032051]
[1731309600715,0.001682,80981.0,80980.0,0.20762051]
[1731309601167,0.001682,80981.0,80980.0,0.33603206]
[1731309601382,0.001682,80981.0,80980.0,0.43356272]
[1731309602701,0.001682,80981.0,80980.0,0.43856272]
[1731309603743,0.001682,80981.0,80980.0,0.44356272]
[1731309604197,0.14095141,81003.0,81001.0,0.123455]
[1731309604580,0.0495,81004.0,81001.0,0.123455]
[1731309604734,0.0495,81004.0,80998.0,0.25302874]
[1731309605279,0.0495,81004.0,81001.0,0.123454]
[1731309605519,0.123454,81002.0,80998.0,0.00611174]
[1731309605895,0.0635,81004.0,81001.0,0.001]
[1731309606126,0.18695,81004.0,81001.0,0.001]
[1731309606532,0.0635,81004.0,81001.0,0.001]
[1731309606739,0.18695,81004.0,81001.0,0.001]
[1731309606934,0.014,81003.0,81001.0,0.002]
[1731309607590,0.17295,81004.0,80999.0,0.123457]
[1731309607798,0.014,81002.0,80999.0,0.123457]
[1731309608031,0.014,81002.0,81001.0,0.001]
[1731309608429,1.637455,81002.0,80998.0,0.00611174]
[1731309608631,1.514,81002.0,81001.0,0.001]
[1731309608862,1.514,81002.0,81001.0,0.002]
[1731309609213,1.623453,81002.0,81001.0,0.001]
[1731309609418,1.637453,81002.0,81001.0,0.002]
[1731309609630,1.514,81002.0,81001.0,0.002]
[1731309610051,1.514,81002.0,81001.0,0.001]
[1731309610244,1.528,81002.0,81001.0,0.002]
[1731309610669,1.651453,81002.0,81001.0,0.002]
[1731309610872,1.528,81002.0,81001.0,0.002]
[1731309611799,1.651453,81002.0,81001.0,0.002]
[1731309612535,1.731053,81002.0,81001.0,0.002]
[1731309613452,1.731894,81002.0,81001.0,0.002]
[1731309615314,1.731894,81002.0,80981.0,0.34697]
[1731309615315,0.002,81001.0,80982.0,0.18536941]
[1731309615480,0.29444024,80983.0,80982.0,0.18536941]
[1731309615915,0.123487,80980.0,80973.0,0.005]
[1731309616152,0.41792324,80983.0,80977.0,0.12849]
[1731309616153,0.17095824,80983.0,80977.0,0.12849]
[1731309616354,0.123487,80980.0,80977.0,0.005]
[1731309616557,0.123487,80980.0,80966.0,0.247015]
[1731309616558,0.123487,80980.0,80969.0,0.005]
[1731309616788,0.37242921,80980.0,80964.0,0.00611174]
[1731309616996,0.37242921,80980.0,80971.0,0.005]
[1731309617220,0.40901256,80980.0,80966.0,0.005]
[1731309617446,0.40901256,80980.0,80973.0,0.005]
[1731309617721,0.57998589,80980.0,80967.0,0.00111174]
[1731309617933,1.22568745,80980.0,80967.0,0.00111174]
[1731309618181,1.28056213,80980.0,80967.0,0.00111174]
[1731309618375,1.28056213,80980.0,80979.0,0.002682]
[1731309618376,1.28656213,80980.0,80979.0,0.002682]
[1731309618579,1.23168745,80980.0,80979.0,0.002682]
[1731309618973,1.23668745,80980.0,80979.0,0.002682]
[1731309619322,1.29158173,80980.0,80979.0,0.002682]
[1731309619544,1.37380566,80980.0,80979.0,0.002682]
[1731309619731,1.37180566,80980.0,80979.0,0.002682]
[1731309620526,1.4449719,80980.0,80979.0,0.002682]
[1731309620696,2.9449719,80980.0,80979.0,0.002682]
[1731309621361,2.87380566,80980.0,80979.0,0.002682]
[1731309621511,2.87180566,80980.0,80979.0,0.002682]
[1731309621711,2.87380566,80980.0,80979.0,0.002682]
[1731309621895,2.94500002,80980.0,80979.0,0.002682]
[1731309622094,2.87180566,80980.0,80979.0,0.002682]
[1731309622297,2.9449898,80980.0,80979.0,0.002682]
[1731309623510,2.61320045,80980.0,80979.0,0.002682]
[1731309623739,2.79159001,80980.0,80979.0,0.002682]
[1731309624148,2.73668745,80980.0,80979.0,0.002682]
[1731309624506,1.23668745,80980.0,80979.0,0.002682]
[1731309624941,0.94224221,80980.0,80979.0,0.002682]
[1731309625391,0.86174221,80980.0,80979.0,0.002682]
[1731309625604,0.87574221,80980.0,80979.0,0.12617]
[1731309625809,0.87574221,80980.0,80979.0,0.001682]
[1731309625810,0.86974221,80980.0,80979.0,0.001682]
[1731309625955,0.88374221,80980.0,80979.0,0.001682]
[1731309626160,1.00722921,80980.0,80979.0,0.001682]
[1731309626363,0.99322921,80980.0,80979.0,0.001682]
[1731309626576,1.06152921,80980.0,80979.0,0.001682]
[1731309626738,1.12443856,80980.0,80979.0,0.001682]
[1731309627120,1.20269502,80980.0,80979.0,0.00131321]
[1731309628064,1.19671195,80980.0,80979.0,0.00131321]
[1731309628491,1.13046329,80980.0,80979.0,0.00131321]
[1731309629157,2.64446342,80980.0,80979.0,0.00131321]
[1731309629319,2.58952921,80980.0,80979.0,0.00131321]
[1731309629526,2.57552921,80980.0,80979.0,0.00131321]
[1731309629954,2.58952921,80980.0,80979.0,0.00131321]
[1731309630896,2.5026699,80980.0,80979.0,0.00131321]
[1731309631040,0.7103,80980.0,80979.0,0.12591295]
[1731309631237,0.028,80980.0,80979.0,0.13091295]
[1731309631652,0.028,80980.0,80979.0,0.12591295]
[1731309631830,0.028,80980.0,80979.0,0.13091295]
[1731309632041,0.028,80980.0,80979.0,0.00131321]
[1731309632042,0.014,80980.0,80979.0,0.00131321]
[1731309632273,0.123475,80988.0,80981.0,0.123484]
[1731309632651,0.123475,80988.0,80980.0,0.005]
[1731309632652,0.12594221,80987.0,80980.0,0.005]
[1731309632897,0.123478,80986.0,80981.0,0.123485]
[1731309633066,0.24942021,80986.0,80981.0,0.123485]
[1731309633473,0.12594221,80986.0,80980.0,0.005]
[1731309633689,0.24942021,80986.0,80981.0,0.123484]
[1731309633900,0.12594221,80985.0,80979.0,0.00131321]
[1731309634062,0.123486,80981.0,80979.0,0.00231321]
[1731309634259,0.246962,80984.0,80979.0,0.00131321]
[1731309634458,0.123487,80980.0,80979.0,0.00131321]
[1731309634711,0.2860569,80980.0,80979.0,0.00131321]
[1731309634912,0.24942921,80980.0,80979.0,0.00131321]
[1731309635086,0.30436669,80980.0,80979.0,0.00131321]
[1731309635289,0.30436669,80980.0,80979.0,0.00231321]
[1731309635581,0.24942921,80980.0,80979.0,0.00131321]
[1731309635999,0.25442921,80980.0,80979.0,0.00131321]
[1731309636206,0.97335623,80980.0,80979.0,0.00131321]
[1731309636410,0.94172921,80980.0,80979.0,0.00131321]
[1731309636612,0.99666669,80980.0,80979.0,0.00131321]
[1731309636737,0.123509,80966.0,80964.0,0.005]
[1731309636945,0.12351,80965.0,80963.0,0.18536941]
[1731309637329,0.17095824,80966.0,80963.0,0.18536941]
[1731309637510,0.12351,80965.0,80964.0,0.005]
[1731309637744,0.29690045,80966.0,80964.0,0.005]
[1731309638118,0.12351,80965.0,80964.0,0.006]
[1731309638317,0.29690045,80966.0,80964.0,0.005]
[1731309638789,0.12351,80965.0,80964.0,0.005]
[1731309638995,0.247022,80965.0,80964.0,0.005]
[1731309639212,0.12351,80965.0,80964.0,0.006]
[1731309639848,0.1306907,80966.0,80964.0,0.006]
[1731309640430,0.1306907,80966.0,80964.0,0.005]
[1731309640647,0.12351,80965.0,80964.0,0.006]
[1731309640871,0.1306907,80966.0,80964.0,0.006]
[1731309641387,0.12594221,80966.0,80964.0,0.006]
[1731309641514,0.12594221,80966.0,80964.0,0.005]
[1731309641715,0.12594221,80966.0,80964.0,0.006]
[1731309642115,0.12594221,80966.0,80964.0,0.005]
[1731309642385,0.68700161,80968.0,80967.0,0.123507]
[1731309642607,0.68700161,80968.0,80964.0,0.129511]
[1731309642738,0.68700161,80968.0,80964.0,0.124511]
[1731309642945,0.68700161,80968.0,80964.0,0.129511]
[1731309643345,0.68700161,80968.0,80967.0,0.123507]
[1731309643563,0.6823,80968.0,80967.0,0.123507]
[1731309643767,0.6823,80968.0,80967.0,0.128507]
[1731309644085,0.6823,80968.0,80967.0,0.129507]
[1731309644282,0.6823,80968.0,80967.0,0.13061874]
[1731309644462,0.6823,80983.0,80979.0,0.246976]
[1731309644860,0.18536941,80984.0,80983.0,0.123482]
[1731309645062,0.6823,80987.0,80983.0,0.123482]
[1731309645193,0.12594221,80986.0,80984.0,0.12348]
[1731309645632,0.12594221,80986.0,80976.0,0.005]
[1731309645833,0.12594221,80986.0,80977.0,0.00111174]
[1731309646099,0.24942021,80986.0,80978.0,0.128489]
[1731309646418,0.123481,80984.0,80978.0,0.123489]
[1731309646619,0.123483,80983.0,80975.0,0.43235741]
[1731309646743,0.123479,80985.0,80977.0,0.123491]
[1731309646948,0.12594221,80985.0,80977.0,0.005]
[1731309647176,0.12594221,80985.0,80978.0,0.123489]
[1731309647383,0.12594221,80985.0,80980.0,0.123487]
[1731309647612,0.12594221,80985.0,80977.0,0.005]
[1731309647819,1.62594221,80985.0,80979.0,0.123487]
[1731309648056,0.123482,80983.0,80977.0,0.128491]
[1731309648260,0.12594221,80982.0,80977.0,0.005]
[1731309648480,1.5,80985.0,80978.0,0.001]
[1731309648678,1.5,80985.0,80977.0,0.005]
[1731309648679,1.62594221,80985.0,80983.0,0.123481]
[1731309648880,0.12594221,80985.0,80984.0,0.123481]
[1731309649084,0.6823,80986.0,80985.0,0.123479]
[1731309650898,0.6863,80986.0,80985.0,0.123479]
[1731309651104,0.6903,80986.0,80985.0,0.123479]
[1731309651304,0.6863,80986.0,80985.0,0.123479]
[1731309651517,0.001684,80987.0,80985.0,0.123479]
[1731309651518,0.001684,80987.0,80985.0,0.00611174]
[1731309651720,0.001684,80987.0,80986.0,0.128478]
[1731309653238,0.003684,80987.0,80978.0,0.005]
[1731309653391,0.003684,80987.0,80977.0,0.246982]
[1731309653392,0.12594221,80986.0,80984.0,0.123479]
[1731309653600,0.12594221,80986.0,80978.0,0.005]
[1731309653820,0.12594221,80986.0,80977.0,0.00611174]
[1731309654239,0.12594221,80986.0,80976.0,0.005]
[1731309654447,0.12594221,80986.0,80977.0,0.123491]
[1731309654448,0.12348,80985.0,80977.0,0.123491]
[1731309654643,0.12594221,80984.0,80976.0,0.005]
[1731309654866,0.12594221,80984.0,80978.0,0.005]
[1731309655065,0.12594221,80984.0,80979.0,0.123488]
[1731309655722,0.12594221,80984.0,80978.0,0.005]
[1731309655925,0.12594221,80984.0,80978.0,0.12849]
[1731309656131,0.12594221,80984.0,80980.0,0.123486]
[1731309656345,0.12594221,80984.0,80981.0,0.123485]
[1731309656553,0.12594221,80984.0,80978.0,0.005]
[1731309656554,0.12594221,80984.0,80979.0,0.123488]
[1731309656767,1.5,80983.0,80979.0,0.124488]
[1731309656979,0.12594221,80982.0,80979.0,0.123488]
[1731309657187,0.12594221,80982.0,80980.0,0.001]
[1731309657595,0.12594221,80982.0,80979.0,0.123488]
[1731309657810,0.12594221,80982.0,80979.0,0.124488]
[1731309658048,1.5,80981.0,80979.0,0.124488]
[1731309658269,1.5,80981.0,80980.0,0.123487]
[1731309658696,0.12594221,80982.0,80980.0,0.123487]
[1731309659141,0.12594221,80982.0,80979.0,0.001]
[1731309659352,0.12594221,80982.0,80980.0,0.123486]
[1731309659970,0.12594221,80982.0,80980.0,0.124486]
[1731309660177,0.71896379,80984.0,80981.0,0.246969]
[1731309660390,0.6823,80984.0,80983.0,0.123482]
[1731309660601,0.683984,80984.0,80983.0,0.123482]
[1731309661495,0.685984,80984.0,80983.0,0.123482]
[1731309661919,0.687984,80984.0,80983.0,0.123482]
[1731309662345,0.687984,80984.0,80981.0,0.005]
[1731309662551,0.687984,80984.0,80980.0,0.005]